fUSD/lending_fUSD_20241223
["ID","MTS","AMOUNT","RATE_DAILY","PERIOD"]
[346434228,1734975062533,-500.0,0.00018413,2]
[346434229,1734975062542,-241.59839,0.00018413,2]
[346434230,1734975062552,-500.0,0.00018413,2]
[346434231,1734975062561,-2234.08,0.00018413,2]
[346434232,1734975062571,-681.01,0.00018413,2]
[346434233,1734975062580,-500.0,0.00018413,2]
[346434234,1734975062589,-151.0,0.00018413,2]
[346434235,1734975062599,-500.0,0.00018413,2]
[346434236,1734975062609,-711.1,0.00018413,2]
[346434237,1734975062618,-500.0,0.00018413,2]
[346434238,1734975062627,-500.0,0.00018413,2]
[346434239,1734975062637,-500.0,0.00018413,2]
[346434240,1734975062647,-152.47930859,0.00018413,2]
[346434241,1734975062656,-500.0,0.00018413,2]
[346434242,1734975062665,-500.0,0.00018413,2]
[346434243,1734975062675,-1302.63,0.00018413,2]
[346434244,1734975062684,-500.0,0.00018413,2]
[346434245,1734975062693,-1695.96,0.00018413,2]
[346434246,1734975062703,-500.0,0.00018413,2]
[346434247,1734975062713,-500.0,0.00018413,2]
[346434248,1734975062722,-500.0,0.00018413,2]
[346434249,1734975062731,-780.7,0.00018413,2]
[346434250,1734975062741,-366.8919147,0.00018413,2]
[346434251,1734975062751,-500.0,0.00018413,2]
[346434252,1734975062761,-1921.66,0.00018413,2]
[346434253,1734975062770,-500.0,0.00018413,2]
[346434254,1734975062780,-1163.17,0.00018413,2]
[346434255,1734975062793,-503.35394734,0.00018413,2]
[346434256,1734975062802,-500.0,0.00018413,2]
[346434257,1734975062812,-500.0,0.00018413,2]
[346434258,1734975062823,-500.0,0.00018413,2]
[346434259,1734975062836,-500.0,0.00018413,2]
[346434260,1734975062849,-500.0,0.00018413,2]
[346434261,1734975062863,-500.0,0.00018413,2]
[346434262,1734975062881,-500.0,0.00018413,2]
[346434263,1734975062892,-3069.02,0.00018413,2]
[346434264,1734975062906,-696.58,0.00018413,2]
[346434265,1734975062917,-696.58,0.00018413,2]
[346434266,1734975062927,-1028.72,0.00018413,2]
[346434267,1734975062937,-2034.55,0.00018413,2]
[346434268,1734975062946,-345.49348443,0.00018413,2]
[346434269,1734975062956,-504.09,0.00018413,2]
[346434270,1734975062965,-500.0,0.00018413,2]
[346434271,1734975062974,-1622.54,0.00018413,2]
[346434272,1734975062983,-605.94,0.00018413,2]
[346434273,1734975062993,-1468.9784,0.00018413,2]
[346434274,1734975063002,-1468.9784,0.00018413,2]
[346434275,1734975063012,-500.0,0.00018413,2]
[346434276,1734975063021,-1468.9784,0.00018413,2]
[346434277,1734975063032,-1468.9784,0.00018413,2]
[346434278,1734975063042,-566.18,0.00018413,2]
[346434279,1734975063052,-500.0,0.00018413,2]
[346434280,1734975063062,-844.27,0.00018413,2]
[346434281,1734975063072,-2077.85,0.00018413,2]
[346434282,1734975063083,-877.08,0.00018413,2]
[346434283,1734975063094,-500.0,0.00018413,2]
[346434284,1734975063104,-823.77,0.00018413,2]
[346434285,1734975063115,-500.0,0.00018413,2]
[346434286,1734975063125,-3191.88,0.00018413,2]
[346434287,1734975063135,-1729.39,0.00018413,2]
[346434288,1734975063145,-500.0,0.00018413,2]
[346434289,1734975063155,-500.0,0.00018413,2]
[346434290,1734975063165,-1730.49,0.00018413,2]
[346434291,1734975063175,-805.86,0.00018413,2]
[346434292,1734975063185,-500.0,0.00018413,2]
[346434293,1734975063195,-500.0,0.00018413,2]
[346434294,1734975063205,-773.79,0.00018413,2]
[346434295,1734975063216,-758.46,0.00018413,2]
[346434296,1734975063227,-502.21086994,0.00018413,2]
[346434297,1734975063237,-500.0,0.00018413,2]
[346434298,1734975063247,-1011.61,0.00018413,2]
[346434299,1734975063256,-1977.09,0.00018413,2]
[346434300,1734975063266,-531.19,0.00018413,2]
[346434301,1734975063275,-500.0,0.00018413,2]
[346434302,1734975063284,-693.01,0.00018413,2]
[346434303,1734975063294,-558.33321804,0.00018413,2]
[346434304,1734975063303,-3383.88,0.00018413,2]
[346434305,1734975063313,-732.22,0.00018413,2]
[346434306,1734975063323,-500.0,0.00018413,2]
[346434307,1734975063333,-795.99,0.00018413,2]
[346434308,1734975063342,-1444.69,0.00018413,2]
[346434309,1734975063355,-1516.73,0.00018413,2]
[346434310,1734975063365,-500.0,0.00018413,2]
[346434311,1734975063375,-500.0,0.00018413,2]
[346434312,1734975063385,-3726.6,0.00018413,2]
[346434313,1734975063395,-500.0,0.00018413,2]
[346434314,1734975063404,-500.0,0.00018413,2]
[346434315,1734975063414,-500.0,0.00018413,2]
[346434316,1734975063424,-500.0,0.00018413,2]
[346434317,1734975063433,-1640.16,0.00018413,2]
[346434318,1734975063443,-500.0,0.00018413,2]
[346434319,1734975063455,-500.0,0.00018413,2]
[346434320,1734975063464,-500.0,0.00018413,2]
[346434321,1734975063474,-1086.77,0.00018413,2]
[346434322,1734975063484,-500.0,0.00018413,2]
[346434323,1734975063494,-151.0,0.00018414,2]
[346434324,1734975063504,-151.0,0.00018414,2]
[346434325,1734975063514,-151.0,0.00018414,2]
[346434326,1734975063524,-151.0,0.00018414,2]
[346434327,1734975063535,-151.0,0.00018414,2]
[346434328,1734975063544,-151.0,0.00018414,2]
[346434329,1734975063554,-154.930197,0.00018414,2]
[346434330,1734975063565,-151.0,0.00018414,2]
[346434331,1734975063575,-151.0,0.00018414,2]
[346434332,1734975063585,-151.0,0.00018414,2]
[346434333,1734975063596,-151.0,0.00018414,2]
[346434334,1734975063607,-160.925954,0.00018414,2]
[346434335,1734975063617,-151.0,0.00018414,2]
[346434336,1734975063627,-151.0,0.00018414,2]
[346434337,1734975063637,-151.0,0.00018414,2]
[346434338,1734975063647,-151.0,0.00018414,2]
[346434339,1734975063657,-221.863357,0.00018414,2]
[346434340,1734975063667,-151.0,0.00018414,2]
[346434341,1734975063677,-151.0,0.00018414,2]
[346434342,1734975063686,-154.246433,0.00018414,2]
[346434343,1734975063696,-154.246433,0.00018414,2]
[346434344,1734975063707,-154.246433,0.00018414,2]
[346434345,1734975063717,-154.246433,0.00018414,2]
[346434346,1734975063727,-500.0,0.00018414,2]
[346434347,1734975063736,-500.0,0.00018414,2]
[346434348,1734975063746,-500.0,0.00018414,2]
[346434349,1734975063756,-500.0,0.00018414,2]
[346434350,1734975063767,-643.59652373,0.00018414,2]
[346434351,1734975063777,-450.495,0.00018414,2]
[346434352,1734975063791,-1925.188234,0.00018414,2]
[346434353,1734975063802,-1925.188234,0.00018414,2]
[346434354,1734975063812,-151.0,0.00018414,2]
[346434355,1734975063822,-500.0,0.00018414,2]
[346434356,1734975063835,-1175.324182,0.00018414,2]
[346434357,1734975063846,-1175.324182,0.00018414,2]
[346434358,1734975063856,-200.0,0.00018414,2]
[346434359,1734975063873,-500.0,0.00018414,2]
[346434360,1734975063883,-500.0,0.00018414,2]
[346434361,1734975063893,-696.58,0.00018414,2]
[346434362,1734975063903,-696.58,0.00018414,2]
[346434363,1734975063913,-696.58,0.00018414,2]
[346434364,1734975063923,-500.0,0.00018414,2]
[346434365,1734975063933,-500.0,0.00018414,2]
[346434366,1734975063942,-3000.0,0.00018414,2]
[346434367,1734975063952,-201.05,0.00018415,2]
[346434368,1734975063961,-200.95,0.00018415,2]
[346434369,1734975063972,-151.0,0.00018415,2]
[346434370,1734975063982,-151.0,0.00018415,2]
[346434371,1734975063992,-151.0,0.00018415,2]
[346434372,1734975064002,-151.0,0.00018415,2]
[346434373,1734975064012,-151.0,0.00018415,2]
[346434374,1734975064022,-151.0,0.00018415,2]
[346434375,1734975064032,-151.0,0.00018415,2]
[346434376,1734975064042,-151.0,0.00018415,2]
[346434377,1734975064052,-151.0,0.00018415,2]
[346434378,1734975064062,-151.0,0.00018415,2]
[346434379,1734975064073,-261.521772,0.00018415,2]
[346434380,1734975064083,-202.980963,0.00018415,2]
[346434381,1734975064095,-151.0,0.00018415,2]
[346434382,1734975064106,-151.0,0.00018415,2]
[346434383,1734975064117,-151.0,0.00018415,2]
[346434384,1734975064127,-151.0,0.00018415,2]
[346434385,1734975064138,-151.0,0.00018415,2]
[346434386,1734975064148,-151.0,0.00018415,2]
[346434387,1734975064158,-151.0,0.00018415,2]
[346434388,1734975064168,-151.0,0.00018415,2]
[346434389,1734975064178,-151.0,0.00018415,2]
[346434390,1734975064188,-151.0,0.00018415,2]
[346434391,1734975064199,-151.0,0.00018415,2]
[346434392,1734975064210,-151.0,0.00018415,2]
[346434393,1734975064220,-164.515907,0.00018415,2]
[346434394,1734975064230,-164.515907,0.00018415,2]
[346434395,1734975064241,-164.515907,0.00018415,2]
[346434396,1734975064251,-164.515907,0.00018415,2]
[346434397,1734975064262,-164.515907,0.00018415,2]
[346434398,1734975064272,-164.515907,0.00018415,2]
[346434399,1734975064282,-164.515907,0.00018415,2]
[346434400,1734975064292,-164.515907,0.00018415,2]
[346434401,1734975064303,-191.308641,0.00018415,2]
[346434402,1734975064313,-151.0,0.00018415,2]
[346434403,1734975064324,-151.0,0.00018415,2]
[346434404,1734975064334,-151.0,0.00018415,2]
[346434405,1734975064345,-151.0,0.00018415,2]
[346434406,1734975064355,-151.0,0.00018415,2]
[346434407,1734975064366,-151.0,0.00018415,2]
[346434408,1734975064376,-151.0,0.00018415,2]
[346434409,1734975064386,-151.0,0.00018415,2]
[346434410,1734975064396,-151.0,0.00018415,2]
[346434411,1734975064407,-151.0,0.00018415,2]
[346434412,1734975064417,-151.0,0.00018415,2]
[346434413,1734975064428,-151.0,0.00018415,2]
[346434414,1734975064438,-771.74643,0.00018415,2]
[346434415,1734975064448,-771.74643,0.00018415,2]
[346434416,1734975064458,-151.0,0.00018415,2]
[346434417,1734975064468,-151.0,0.00018415,2]
[346434418,1734975064478,-151.0,0.00018415,2]
[346434419,1734975064488,-151.0,0.00018415,2]
[346434420,1734975064499,-151.0,0.00018415,2]
[346434421,1734975064510,-151.0,0.00018415,2]
[346434422,1734975064520,-151.0,0.00018415,2]
[346434423,1734975064531,-151.60302,0.00018415,2]
[346434424,1734975064541,-154.246433,0.00018415,2]
[346434425,1734975064551,-154.246433,0.00018415,2]
[346434426,1734975064562,-154.246433,0.00018415,2]
[346434427,1734975064572,-154.246433,0.00018415,2]
[346434428,1734975064582,-154.246433,0.00018415,2]
[346434429,1734975064592,-154.246433,0.00018415,2]
[346434430,1734975064604,-614.56,0.00018415,2]
[346434431,1734975064615,-1067.76,0.00018415,2]
[346434432,1734975064625,-1097.5,0.00018415,2]
[346434433,1734975064636,-500.0,0.00018415,2]
[346434434,1734975064647,-500.0,0.00018415,2]
[346434435,1734975064657,-500.0,0.00018415,2]
[346434436,1734975064668,-562.95,0.00018415,2]
[346434437,1734975064679,-500.0,0.00018415,2]
[346434438,1734975064689,-500.0,0.00018415,2]
[346434439,1734975064700,-500.0,0.00018415,2]
[346434440,1734975064711,-500.0,0.00018415,2]
[346434441,1734975064721,-830.41,0.00018415,2]
[346434442,1734975064732,-830.41,0.00018415,2]
[346434443,1734975064743,-830.41,0.00018415,2]
[346434444,1734975064753,-830.41,0.00018415,2]
[346434445,1734975064764,-830.41,0.00018415,2]
[346434446,1734975064774,-830.41,0.00018415,2]
[346434447,1734975064785,-830.41,0.00018415,2]
[346434448,1734975064797,-830.41,0.00018415,2]
[346434449,1734975064807,-830.41,0.00018415,2]
[346434450,1734975064818,-207.684452,0.00018415,2]
[346434451,1734975064829,-830.41,0.00018415,2]
[346434452,1734975064840,-207.684452,0.00018415,2]
[346434453,1734975064852,-830.41,0.00018415,2]
[346434454,1734975064864,-830.41,0.00018415,2]
[346434455,1734975064875,-830.41,0.00018415,2]
[346434456,1734975064885,-830.41,0.00018415,2]
[346434457,1734975064896,-830.41,0.00018415,2]
[346434458,1734975064906,-830.41,0.00018415,2]
[346434459,1734975064916,-830.41,0.00018415,2]
[346434460,1734975064927,-830.41,0.00018415,2]
[346434461,1734975064937,-830.41,0.00018415,2]
[346434462,1734975064948,-830.41,0.00018415,2]
[346434463,1734975064958,-830.41,0.00018415,2]
[346434464,1734975064969,-830.41,0.00018415,2]
[346434465,1734975064979,-830.41,0.00018415,2]
[346434466,1734975064990,-830.44,0.00018415,2]
[346434467,1734975065001,-207.684452,0.00018415,2]
[346434468,1734975065012,-207.684452,0.00018415,2]
[346434469,1734975065022,-932.14,0.00018415,2]
[346434470,1734975065033,-522.65,0.00018415,2]
[346434471,1734975065044,-500.0,0.00018415,2]
[346434472,1734975065055,-500.0,0.00018415,2]
[346434473,1734975065066,-500.0,0.00018415,2]
[346434474,1734975065076,-1086.61,0.00018415,2]
[346434475,1734975065087,-671.69,0.00018415,2]
[346434476,1734975065099,-1925.188234,0.00018415,2]
[346434477,1734975065109,-1925.188234,0.00018415,2]
[346434478,1734975065120,-500.0,0.00018415,2]
[346434479,1734975065131,-1925.188234,0.00018415,2]
[346434480,1734975065141,-1925.188234,0.00018415,2]
[346434481,1734975065152,-446.255174,0.00018415,2]
[346434482,1734975065162,-446.255174,0.00018415,2]
[346434483,1734975065173,-1027.66,0.00018415,2]
[346434484,1734975065183,-446.255174,0.00018415,2]
[346434485,1734975065194,-446.255174,0.00018415,2]
[346434486,1734975065205,-151.0,0.00018415,2]
[346434487,1734975065216,-151.0,0.00018415,2]
[346434488,1734975065226,-500.0,0.00018415,2]
[346434489,1734975065237,-1262.77,0.00018415,2]
[346434490,1734975065247,-151.0,0.00018415,2]
[346434491,1734975065258,-173.344881,0.00018415,2]
[346434492,1734975065270,-151.0,0.00018415,2]
[346434493,1734975065280,-151.0,0.00018415,2]
[346434494,1734975065291,-500.0,0.00018415,2]
[346434495,1734975065302,-500.0,0.00018415,2]
[346434496,1734975065312,-569.04,0.00018415,2]
[346434497,1734975065323,-151.0,0.00018415,2]
[346434498,1734975065333,-151.0,0.00018415,2]
[346434499,1734975065344,-500.0,0.00018415,2]
[346434500,1734975065355,-151.0,0.00018415,2]
[346434501,1734975065366,-151.0,0.00018415,2]
[346434502,1734975065377,-500.0,0.00018415,2]
[346434503,1734975065389,-500.0,0.00018415,2]
[346434504,1734975065400,-846.08,0.00018415,2]
[346434505,1734975065410,-1045.53,0.00018415,2]
[346434506,1734975065419,-500.0,0.00018415,2]
[346434507,1734975065430,-1760.3,0.00018415,2]
[346434508,1734975065440,-500.0,0.00018415,2]
[346434509,1734975065451,-500.0,0.00018415,2]
[346434510,1734975065462,-768.19,0.00018415,2]
[346434511,1734975065472,-500.0,0.00018415,2]
[346434512,1734975065483,-598.48,0.00018415,2]
[346434513,1734975065493,-500.0,0.00018415,2]
[346434514,1734975065503,-508.17,0.00018415,2]
[346434515,1734975065514,-1175.324182,0.00018415,2]
[346434516,1734975065525,-1175.324182,0.00018415,2]
[346434517,1734975065535,-1175.324182,0.00018415,2]
[346434518,1734975065546,-1175.324182,0.00018415,2]
[346434519,1734975065556,-500.0,0.00018415,2]
[346434520,1734975065566,-1196.91,0.00018415,2]
[346434521,1734975065577,-151.0,0.00018415,2]
[346434522,1734975065587,-741.94,0.00018415,2]
[346434523,1734975065597,-261.855576,0.00018415,2]
[346434524,1734975065608,-500.0,0.00018415,2]
[346434525,1734975065619,-267.46257723,0.00018415,2]
[346434526,1734975065629,-1361.26,0.00018415,2]
[346434527,1734975065639,-500.0,0.00018415,2]
[346434528,1734975065649,-537.32440273,0.00018415,2]
[346434529,1734975065660,-1280.52,0.00018415,2]
[346434530,1734975065670,-180.786895,0.00018415,2]
[346434531,1734975065679,-180.786895,0.00018415,2]
[346434532,1734975065690,-180.786895,0.00018415,2]
[346434533,1734975065700,-180.786895,0.00018415,2]
[346434534,1734975065710,-500.0,0.00018415,2]
[346434535,1734975065720,-500.0,0.00018415,2]
[346434536,1734975065731,-500.0,0.00018415,2]
[346434537,1734975065742,-150.0,0.00018415,2]
[346434538,1734975065752,-500.0,0.00018415,2]
[346434539,1734975065763,-1414.44,0.00018415,2]
[346434540,1734975065774,-2312.15,0.00018415,2]
[346434541,1734975065788,-712.1,0.00018415,2]
[346434542,1734975065800,-3825.35,0.00018415,2]
[346434543,1734975065810,-500.0,0.00018415,2]
[346434544,1734975065820,-1339.22,0.00018415,2]
[346434545,1734975065831,-500.0,0.00018415,2]
[346434546,1734975065841,-151.0,0.00018415,2]
[346434547,1734975065853,-1686.64,0.00018415,2]
[346434548,1734975065863,-1312.76,0.00018415,2]
[346434549,1734975065874,-249.424709,0.00018415,2]
[346434550,1734975065884,-151.0,0.00018415,2]
[346434551,1734975065895,-500.0,0.00018415,2]
[346434552,1734975065905,-2249.62,0.00018415,2]
[346434553,1734975065915,-500.0,0.00018415,2]
[346434554,1734975065927,-383.365117,0.00018415,2]
[346434555,1734975065937,-287.990191,0.00018415,2]
[346434556,1734975065948,-383.365117,0.00018415,2]
[346434557,1734975065959,-1766.9,0.00018415,2]
[346434558,1734975065970,-287.990191,0.00018415,2]
[346434559,1734975065980,-172.34885,0.00018415,2]
[346434560,1734975065991,-172.34885,0.00018415,2]
[346434561,1734975066001,-1680.42,0.00018415,2]
[346434562,1734975066011,-500.0,0.00018415,2]
[346434563,1734975066022,-500.0,0.00018415,2]
[346434564,1734975066032,-500.0,0.00018415,2]
[346434565,1734975066042,-3792.53,0.00018415,2]
[346434566,1734975066054,-339.47651481,0.00018415,2]
[346434567,1734975066065,-500.0,0.00018415,2]
[346434568,1734975066075,-2309.98,0.00018415,2]
[346434569,1734975066085,-533.17,0.00018415,2]
[346434570,1734975066095,-3700.54,0.00018415,2]
[346434571,1734975066106,-500.0,0.00018415,2]
[346434572,1734975066116,-500.0,0.00018415,2]
[346434573,1734975066127,-1067.58,0.00018415,2]
[346434574,1734975066137,-1032.07,0.00018415,2]
[346434575,1734975066148,-151.0,0.00018415,2]
[346434576,1734975066159,-500.0,0.00018415,2]
[346434577,1734975066168,-2879.92,0.00018415,2]
[346434578,1734975066178,-778.09,0.00018415,2]
[346434579,1734975066187,-1687.99,0.00018415,2]
[346434580,1734975066198,-1689.31,0.00018415,2]
[346434581,1734975066208,-697.32,0.00018415,2]
[346434582,1734975066218,-527.63,0.00018415,2]
[346434583,1734975066229,-2032.49,0.00018415,2]
[346434584,1734975066239,-500.0,0.00018415,2]
[346434585,1734975066250,-1081.72,0.00018415,2]
[346434586,1734975066261,-884.33,0.00018415,2]
[346434587,1734975066271,-818.63,0.00018415,2]
[346434588,1734975066280,-500.0,0.00018415,2]
[346434589,1734975066290,-1591.277946,0.00018415,2]
[346434590,1734975066300,-669.32,0.00018415,2]
[346434591,1734975066310,-1591.277946,0.00018415,2]
[346434592,1734975066320,-2855.32,0.00018415,2]
[346434593,1734975066330,-500.0,0.00018415,2]
[346434594,1734975066340,-500.0,0.00018415,2]
[346434595,1734975066352,-500.0,0.00018415,2]
[346434596,1734975066362,-642.15,0.00018415,2]
[346434597,1734975066372,-200.55767374,0.00018415,2]
[346434598,1734975066383,-581.82,0.00018415,2]
[346434599,1734975066394,-1321.89,0.00018415,2]
[346434600,1734975066405,-1379.12,0.00018415,2]
[346434601,1734975066415,-151.0,0.00018415,2]
[346434602,1734975066426,-500.0,0.00018415,2]
[346434603,1734975066437,-1531.31,0.00018415,2]
[346434604,1734975066448,-241.59839,0.00018415,2]
[346434605,1734975066754,-241.598383,0.00018415,2]
[346434606,1734975066765,-500.0,0.00018415,2]
[346434607,1734975066775,-446.37643109,0.00018415,2]
[346434608,1734975066788,-696.58,0.00018415,2]
[346434609,1734975066803,-696.58,0.00018415,2]
[346434610,1734975066814,-696.58,0.00018415,2]
[346434611,1734975066825,-696.58,0.00018415,2]
[346434612,1734975066838,-696.58,0.00018415,2]
[346434613,1734975066851,-696.58,0.00018415,2]
[346434614,1734975066862,-696.58,0.00018415,2]
[346434615,1734975066874,-696.58,0.00018415,2]
[346434616,1734975066884,-696.58,0.00018415,2]
[346434617,1734975066894,-696.58,0.00018415,2]
[346434618,1734975066904,-696.58,0.00018415,2]
[346434619,1734975066914,-696.58,0.00018415,2]
[346434620,1734975066924,-696.58,0.00018415,2]
[346434621,1734975066934,-696.61345102,0.00018415,2]
[346434622,1734975066945,-1468.9784,0.00018415,2]
[346434623,1734975066954,-1468.978392,0.00018415,2]
[346434624,1734975066964,-500.0,0.00018415,2]
[346434625,1734975066974,-500.0,0.00018415,2]
[346434626,1734975066984,-500.0,0.00018415,2]
[346434627,1734975066994,-500.0,0.00018415,2]
[346434628,1734975067004,-500.0,0.00018415,2]
[346434629,1734975067014,-500.0,0.00018415,2]
[346434630,1734975067023,-500.0,0.00018415,2]
[346434631,1734975067033,-500.0,0.00018415,2]
[346434632,1734975067043,-518.27538464,0.00018415,2]
[346434633,1734975067053,-167.96561398,0.00018415,2]
[346434634,1734975067064,-167.96561398,0.00018415,2]
[346434635,1734975067074,-167.96561398,0.00018415,2]
[346434636,1734975067084,-167.96561398,0.00018415,2]
[346434637,1734975067094,-167.96561398,0.00018415,2]
[346434638,1734975067105,-167.96561398,0.00018415,2]
[346434639,1734975067115,-167.96561398,0.00018415,2]
[346434640,1734975067125,-167.96561398,0.00018415,2]
[346434641,1734975067135,-167.96561398,0.00018415,2]
[346434642,1734975067146,-167.96561398,0.00018415,2]
[346434643,1734975067157,-167.96561398,0.00018415,2]
[346434644,1734975067167,-167.96561398,0.00018415,2]
[346434645,1734975067177,-167.96561398,0.00018415,2]
[346434646,1734975067187,-167.96561398,0.00018415,2]
[346434647,1734975067197,-167.96561398,0.00018415,2]
[346434648,1734975067207,-167.96561398,0.00018415,2]
[346434649,1734975067217,-167.96561398,0.00018415,2]
[346434650,1734975067227,-167.96561398,0.00018415,2]
[346434651,1734975067238,-167.96561398,0.00018415,2]
[346434652,1734975067248,-167.96561398,0.00018415,2]
[346434653,1734975067258,-167.96561398,0.00018415,2]
[346434654,1734975067268,-167.96561398,0.00018415,2]
[346434655,1734975067278,-167.96561398,0.00018415,2]
[346434656,1734975067287,-167.96561398,0.00018415,2]
[346434657,1734975067297,-167.96561398,0.00018415,2]
[346434658,1734975067307,-167.96561398,0.00018415,2]
[346434659,1734975067317,-167.96561398,0.00018415,2]
[346434660,1734975067327,-167.96561398,0.00018415,2]
[346434661,1734975067336,-167.96561398,0.00018415,2]
[346434662,1734975067347,-167.96561398,0.00018415,2]
[346434663,1734975067356,-167.96561398,0.00018415,2]
[346434664,1734975067366,-167.96561398,0.00018415,2]
[346434665,1734975067375,-167.96561398,0.00018415,2]
[346434666,1734975067385,-11725843.33679148,0.00018416,2]
[346434667,1734975068118,-8466.75160639,0.00018416,2]
[346434668,1734975068131,-2697.74707405,0.00018416,2]
[346434669,1734975068547,-617.52,0.00017548,2]
[346434670,1734975068557,-164.83792681,0.00017549,2]
[346434671,1734975068567,-617.52,0.00017822,2]
[346434672,1734975068576,-3887.0,0.00017992,2]
[346434673,1734975068586,-617.52,0.00018096,2]
[346434674,1734975068596,-617.52,0.0001837,2]
[346434675,1734975068609,-10501.08,0.0001838,2]
[346434676,1734975068619,-95994.16283395,0.00018416,2]
[346434677,1734975069939,-809.55,0.00017446,2]
[346434678,1734975069949,-809.55,0.00017448,2]
[346434679,1734975069959,-809.55,0.00017547,2]
[346434680,1734975069969,-809.55,0.00017547,2]
[346434681,1734975069978,-809.55,0.00017547,2]
[346434682,1734975069988,-500.0,0.00017548,2]
[346434683,1734975069998,-18293.0,0.00017558,2]
[346434684,1734975070008,-150.0,0.00017789,2]
[346434685,1734975070019,-500.0,0.00017822,2]
[346434686,1734975070029,-18293.0,0.00017832,2]
[346434687,1734975070039,-500.0,0.00018096,2]
[346434688,1734975070049,-13145.23163319,0.00018106,2]
[346434689,1734975070077,-500.5246788,0.00018106,2]
[346434690,1734975070114,-809.55,0.00017547,2]
[346434691,1734975070124,-359.45,0.00018106,2]
[346434692,1734975071023,-809.55,0.00017547,2]
[346434693,1734975071033,-809.55,0.00017547,2]
[346434694,1734975071042,-809.55,0.00017547,2]
[346434695,1734975071053,-809.55,0.00017547,2]
[346434696,1734975071062,-1872.0,0.00017557,2]
[346434697,1734975071072,-164.83792681,0.0001764,2]
[346434698,1734975071082,-150.0,0.00017711,2]
[346434699,1734975071092,-1872.0,0.00017831,2]
[346434700,1734975071104,-151.0,0.00017832,2]
[346434701,1734975071114,-151.0,0.00017992,2]
[346434702,1734975071126,-150.0,0.00017992,2]
[346434703,1734975071137,-151.0,0.00018,2]
[346434704,1734975071147,-151.0,0.00018,2]
[346434705,1734975071158,-151.0,0.00018,2]
[346434706,1734975071168,-150.0,0.00018073,2]
[346434707,1734975071179,-1872.0,0.00018105,2]
[346434708,1734975071189,-3815.41207319,0.00018106,2]
[346434709,1734975071202,-472.38161482,0.00018106,2]
[346434710,1734975071212,-150.0,0.00018108,2]
[346434711,1734975071223,-150.0,0.00018155,2]
[346434712,1734975071234,-150.0,0.00018304,2]
[346434713,1734975071245,-150.0,0.00018319,2]
[346434714,1734975071255,-150.0,0.00018334,2]
[346434715,1734975071265,-1063.21957615,0.00018366,2]
[346434716,1734975071278,-4736.78042385,0.00018366,2]
[346434717,1734975071289,-500.0,0.0001837,2]
[346434718,1734975071299,-150.0,0.00018371,2]
[346434719,1734975071309,-1872.0,0.00018379,2]
[346434720,1734975071319,-18293.0,0.0001838,2]
[346434721,1734975071330,-150.0,0.00018387,2]
[346434722,1734975071340,-500.0,0.00018413,2]
[346434723,1734975071351,-113797.97757098,0.00018416,2]
[346434724,1734975071363,-533.6499934,0.00018416,2]
[346434770,1734975312300,726.26,0.00013999,2]
[346434798,1734976185755,689.94,0.00013711,2]
[346434799,1734976208239,800.0,0.00013699,2]